[Event "Late-Titled-Tuesday-Blitz-January-16-2024"]
[Site "Chess.com"]
[Date "2024.01.16"]
[Round "2"]
[White "Sic_Transit_GM"]
[Black "IranianCheetah"]
[Result "1-0"]
[WhiteElo "2684"]
[BlackElo "2377"]
[TimeControl "180+1"]
[EndTime "14:17:59 PST"]
[Termination "Sic_Transit_GM won on time"]

1. g3 {[%clk 0:03:00.9]} 1... g6 {[%clk 0:02:59.9]} 2. Bg2 {[%clk 0:03:00.8]}
2... Bg7 {[%clk 0:03:00.8]} 3. e4 {[%clk 0:03:01]} 3... c5 {[%clk 0:02:59.6]} 4.
d3 {[%clk 0:03:01.1]} 4... Nc6 {[%clk 0:02:59.7]} 5. f4 {[%clk 0:03:01.6]} 5...
b5 {[%clk 0:02:53.2]} 6. Nc3 {[%clk 0:02:58.6]} 6... Rb8 {[%clk 0:02:52.3]} 7.
Nf3 {[%clk 0:02:56.6]} 7... d6 {[%clk 0:02:51.6]} 8. h3 {[%clk 0:02:55.6]} 8...
h5 {[%clk 0:02:50]} 9. O-O {[%clk 0:02:54.5]} 9... b4 {[%clk 0:02:46.8]} 10. Ne2
{[%clk 0:02:54.3]} 10... Nf6 {[%clk 0:02:37.9]} 11. Nh4 {[%clk 0:02:45.4]} 11...
Qc7 {[%clk 0:02:34.6]} 12. f5 {[%clk 0:02:43.6]} 12... gxf5 {[%clk 0:02:19.9]}
13. Nxf5 {[%clk 0:02:42.4]} 13... Bxf5 {[%clk 0:02:18.5]} 14. Rxf5 {[%clk
0:02:43]} 14... e6 {[%clk 0:02:06.6]} 15. Rf2 {[%clk 0:02:41]} 15... Nd7 {[%clk
0:02:04]} 16. Rb1 {[%clk 0:02:35.2]} 16... Nd4 {[%clk 0:02:00]} 17. Be3 {[%clk
0:02:34.4]} 17... Nxe2+ {[%clk 0:01:55.4]} 18. Qxe2 {[%clk 0:02:35.3]} 18... Bd4
{[%clk 0:01:48]} 19. Rbf1 {[%clk 0:02:28.3]} 19... Ne5 {[%clk 0:01:42.9]} 20.
Bxd4 {[%clk 0:02:25.2]} 20... cxd4 {[%clk 0:01:42.3]} 21. Qd2 {[%clk 0:02:23.4]}
21... h4 {[%clk 0:01:30.1]} 22. gxh4 {[%clk 0:02:16.5]} 22... Rg8 {[%clk
0:01:13.3]} 23. Kh1 {[%clk 0:02:13.8]} 23... Qe7 {[%clk 0:00:55.1]} 24. Qh6
{[%clk 0:02:12.5]} 24... Kd7 {[%clk 0:00:47.5]} 25. Rf4 {[%clk 0:01:32.7]} 25...
Rbc8 {[%clk 0:00:32.1]} 26. R1f2 {[%clk 0:01:31.3]} 26... Rg3 {[%clk 0:00:18.3]}
27. Kh2 {[%clk 0:01:29]} 27... Rcg8 {[%clk 0:00:17.7]} 28. Qh5 {[%clk
0:01:20.7]} 28... Ke8 {[%clk 0:00:16.6]} 29. Bf1 {[%clk 0:01:20]} 29... a5
{[%clk 0:00:16.6]} 30. Be2 {[%clk 0:01:19.2]} 30... R3g6 {[%clk 0:00:14.4]} 31.
c3 {[%clk 0:01:05.4]} 31... bxc3 {[%clk 0:00:13.3]} 32. bxc3 {[%clk 0:01:06.3]}
32... dxc3 {[%clk 0:00:10.2]} 33. d4 {[%clk 0:01:07.2]} 33... c2 {[%clk
0:00:09.2]} 34. Bb5+ {[%clk 0:01:00.5]} 34... Kd8 {[%clk 0:00:08.1]} 35. Rxc2
{[%clk 0:00:59.9]} 35... Nd7 {[%clk 0:00:03.2]} 36. Bxd7 {[%clk 0:00:55.5]}
36... Qxd7 {[%clk 0:00:03.5]} 37. Qxa5+ {[%clk 0:00:54]} 37... Ke8 {[%clk
0:00:03.5]} 38. h5 {[%clk 0:00:47.3]} 38... Rg5 {[%clk 0:00:03.1]} 39. e5 {[%clk
0:00:28]} 39... dxe5 {[%clk 0:00:02]} 40. dxe5 {[%clk 0:00:28.7]} 40... Ke7
{[%clk 0:00:02]} 41. Rcf2 {[%clk 0:00:23.8]} 41... Qd5 {[%clk 0:00:01.7]} 42.
Rxf7+ {[%clk 0:00:22.1]} 1-0

[Event "Late-Titled-Tuesday-Blitz-January-16-2024"]
[Site "Chess.com"]
[Date "2024.01.16"]
[Round "2"]
[White "yaguigor"]
[Black "topce"]
[Result "1-0"]
[WhiteElo "2633"]
[BlackElo "2358"]
[TimeControl "180+1"]
[EndTime "14:18:01 PST"]
[Termination "yaguigor won on time"]

1. Nf3 {[%clk 0:03:00.9]} 1... c5 {[%clk 0:02:58]} 2. e4 {[%clk 0:02:59.8]} 2...
Nc6 {[%clk 0:02:57.7]} 3. Bb5 {[%clk 0:02:58.5]} 3... Nf6 {[%clk 0:02:54.2]} 4.
Bxc6 {[%clk 0:02:53.8]} 4... dxc6 {[%clk 0:02:53.3]} 5. d3 {[%clk 0:02:54.3]}
5... Bg4 {[%clk 0:02:52.6]} 6. Nbd2 {[%clk 0:02:52.4]} 6... Qc7 {[%clk
0:02:40.2]} 7. h3 {[%clk 0:02:52.5]} 7... Bh5 {[%clk 0:02:39.5]} 8. g4 {[%clk
0:02:50.1]} 8... Bg6 {[%clk 0:02:38.1]} 9. Nc4 {[%clk 0:02:49.3]} 9... Nd7
{[%clk 0:02:36.6]} 10. Nh4 {[%clk 0:02:38.6]} 10... e5 {[%clk 0:02:36.2]} 11.
O-O {[%clk 0:02:34]} 11... f6 {[%clk 0:02:28.5]} 12. f4 {[%clk 0:02:31.2]} 12...
Bd6 {[%clk 0:02:27.2]} 13. Nxd6+ {[%clk 0:02:24.8]} 13... Qxd6 {[%clk
0:02:26.7]} 14. Nf5 {[%clk 0:02:23.9]} 14... Bxf5 {[%clk 0:02:26.1]} 15. gxf5
{[%clk 0:02:23.6]} 15... O-O-O {[%clk 0:02:24.2]} 16. Be3 {[%clk 0:01:57.6]}
16... exf4 {[%clk 0:02:18.3]} 17. Rxf4 {[%clk 0:01:56.2]} 17... Ne5 {[%clk
0:02:18.5]} 18. b3 {[%clk 0:01:52.2]} 18... g5 {[%clk 0:02:12.7]} 19. Rf2 {[%clk
0:01:35.1]} 19... h5 {[%clk 0:02:09.6]} 20. Kh1 {[%clk 0:01:24.9]} 20... g4
{[%clk 0:02:05.4]} 21. Bf4 {[%clk 0:01:23.9]} 21... gxh3 {[%clk 0:02:02.7]} 22.
Qe2 {[%clk 0:01:18.6]} 22... Qd4 {[%clk 0:01:58.9]} 23. Bxe5 {[%clk 0:01:15.3]}
23... Qxe5 {[%clk 0:01:58]} 24. Rg1 {[%clk 0:01:14.5]} 24... Rdg8 {[%clk
0:01:49.1]} 25. Rff1 {[%clk 0:01:11.4]} 25... Rg5 {[%clk 0:01:42]} 26. Qh2
{[%clk 0:01:08.5]} 26... Qd4 {[%clk 0:01:12.1]} 27. Rxg5 {[%clk 0:00:59.4]}
27... fxg5 {[%clk 0:01:13]} 28. f6 {[%clk 0:00:49]} 28... Rf8 {[%clk 0:01:06.8]}
29. Qxh3+ {[%clk 0:00:47.9]} 29... g4 {[%clk 0:01:02.3]} 30. Qxh5 {[%clk
0:00:45.8]} 30... g3 {[%clk 0:00:50.9]} 31. Qg4+ {[%clk 0:00:42.8]} 31... Kb8
{[%clk 0:00:44.2]} 32. Qxg3+ {[%clk 0:00:42.4]} 32... Ka8 {[%clk 0:00:44.6]} 33.
f7 {[%clk 0:00:41]} 33... Qh8+ {[%clk 0:00:35.7]} 34. Kg2 {[%clk 0:00:39.8]}
34... a5 {[%clk 0:00:30.3]} 35. e5 {[%clk 0:00:38.3]} 35... Qh7 {[%clk
0:00:23.4]} 36. e6 {[%clk 0:00:36.2]} 36... Rh8 {[%clk 0:00:18]} 37. f8=Q+
{[%clk 0:00:35.1]} 37... Rxf8 {[%clk 0:00:17.2]} 38. Rxf8+ {[%clk 0:00:35.5]}
38... Ka7 {[%clk 0:00:17.8]} 39. Rf1 {[%clk 0:00:29.8]} 39... Qh5 {[%clk
0:00:13.9]} 40. Re1 {[%clk 0:00:26.8]} 40... Qd5+ {[%clk 0:00:12]} 41. Re4
{[%clk 0:00:23.5]} 41... c4 {[%clk 0:00:07.8]} 42. bxc4 {[%clk 0:00:22.1]} 42...
Qh5 {[%clk 0:00:05.1]} 43. e7 {[%clk 0:00:20.8]} 43... Qh1+ {[%clk 0:00:01.1]}
44. Kxh1 {[%clk 0:00:19.8]} 1-0

[Event "Late-Titled-Tuesday-Blitz-January-16-2024"]
[Site "Chess.com"]
[Date "2024.01.16"]
[Round "2"]
[White "TheCavemanChess"]
[Black "ImportedItalianMaple"]
[Result "0-1"]
[WhiteElo "2709"]
[BlackElo "2402"]
[TimeControl "180+1"]
[EndTime "14:18:06 PST"]
[Termination "ImportedItalianMaple won by checkmate"]

1. Nh3 {[%clk 0:03:00.9]} 1... e5 {[%clk 0:02:48.6]} 2. Na3 {[%clk 0:03:01.8]}
2... d5 {[%clk 0:02:48.6]} 3. e3 {[%clk 0:03:01.4]} 3... Nf6 {[%clk 0:02:46.3]}
4. d3 {[%clk 0:03:02]} 4... c5 {[%clk 0:02:39.8]} 5. Be2 {[%clk 0:02:59.2]} 5...
Nc6 {[%clk 0:02:38.9]} 6. Bd2 {[%clk 0:02:59.8]} 6... Bd6 {[%clk 0:02:36.7]} 7.
c4 {[%clk 0:02:53.9]} 7... O-O {[%clk 0:02:30.2]} 8. Ng5 {[%clk 0:02:50.6]} 8...
h6 {[%clk 0:02:27.6]} 9. cxd5 {[%clk 0:02:50.9]} 9... Nxd5 {[%clk 0:02:25.8]}
10. Ne4 {[%clk 0:02:50.3]} 10... Be7 {[%clk 0:02:20.5]} 11. g4 {[%clk
0:02:50.8]} 11... b6 {[%clk 0:02:12.2]} 12. Rg1 {[%clk 0:02:49.1]} 12... Bh4
{[%clk 0:02:11.1]} 13. Qb3 {[%clk 0:02:44.9]} 13... Kh8 {[%clk 0:02:07]} 14.
O-O-O {[%clk 0:02:44.3]} 14... Be6 {[%clk 0:02:05.2]} 15. Nc4 {[%clk 0:02:44.6]}
15... Rb8 {[%clk 0:01:54]} 16. Qa3 {[%clk 0:02:24.6]} 16... b5 {[%clk 0:01:46]}
17. Ncd6 {[%clk 0:02:13.7]} 17... b4 {[%clk 0:01:35.6]} 18. Qa4 {[%clk
0:02:11.9]} 18... Qc7 {[%clk 0:01:28.7]} 19. Nf5 {[%clk 0:01:58.5]} 19... Bxf5
{[%clk 0:01:19.2]} 20. gxf5 {[%clk 0:01:59.4]} 20... Be7 {[%clk 0:01:19.5]} 21.
Ng3 {[%clk 0:01:50.5]} 21... f6 {[%clk 0:01:18]} 22. Nh5 {[%clk 0:01:50.5]}
22... Rf7 {[%clk 0:01:10.9]} 23. Bf3 {[%clk 0:01:46.7]} 23... Rd8 {[%clk
0:01:04.7]} 24. Qb3 {[%clk 0:01:44]} 24... Na5 {[%clk 0:01:00.7]} 25. Bxd5
{[%clk 0:01:43.9]} 25... Nxb3+ {[%clk 0:01:00.4]} 26. Bxb3 {[%clk 0:01:44.8]}
26... Bf8 {[%clk 0:00:54.5]} 27. Bc4 {[%clk 0:01:42]} 27... Rfd7 {[%clk
0:00:52.2]} 28. Kc2 {[%clk 0:01:33.6]} 28... a5 {[%clk 0:00:51]} 29. e4 {[%clk
0:01:27.8]} 29... a4 {[%clk 0:00:47.7]} 30. Bxh6 {[%clk 0:01:27.9]} 30... b3+
{[%clk 0:00:24.6]} 31. Kb1 {[%clk 0:01:27.6]} 31... a3 {[%clk 0:00:20.6]} 32.
axb3 {[%clk 0:01:26.1]} 32... axb2 {[%clk 0:00:20.6]} 33. Kxb2 {[%clk
0:01:26.7]} 33... Ra8 {[%clk 0:00:20.7]} 34. Ra1 {[%clk 0:01:26]} 34... Rxa1
{[%clk 0:00:21]} 35. Rxa1 {[%clk 0:01:25.2]} 35... gxh6 {[%clk 0:00:20.2]} 36.
Nxf6 {[%clk 0:01:12.4]} 36... Qd6 {[%clk 0:00:18.8]} 37. Nxd7 {[%clk 0:01:08.2]}
37... Qxd7 {[%clk 0:00:19.7]} 38. Kc2 {[%clk 0:01:06.8]} 38... Qd4 {[%clk
0:00:20]} 39. Ra8 {[%clk 0:01:07]} 39... Qxf2+ {[%clk 0:00:19.8]} 40. Kc3 {[%clk
0:01:07.5]} 40... Qd4+ {[%clk 0:00:20.4]} 41. Kc2 {[%clk 0:01:08]} 41... Kg7
{[%clk 0:00:21]} 42. h4 {[%clk 0:01:04.4]} 42... Be7 {[%clk 0:00:20.9]} 43. Ra7
{[%clk 0:01:03.4]} 43... Kf8 {[%clk 0:00:20.5]} 44. Ra8+ {[%clk 0:01:02]} 44...
Bd8 {[%clk 0:00:20.9]} 45. Bd5 {[%clk 0:01:00]} 45... Ke7 {[%clk 0:00:20.4]} 46.
Ra7+ {[%clk 0:00:58.9]} 46... Kd6 {[%clk 0:00:20.4]} 47. Ra6+ {[%clk 0:00:57.2]}
47... Kc7 {[%clk 0:00:20.5]} 48. Ra7+ {[%clk 0:00:57.5]} 48... Kb8 {[%clk
0:00:20.7]} 49. Ra8+ {[%clk 0:00:55.5]} 49... Kc7 {[%clk 0:00:21.4]} 50. Ra7+
{[%clk 0:00:54]} 50... Kb6 {[%clk 0:00:22]} 51. Rb7+ {[%clk 0:00:51.2]} 51...
Ka6 {[%clk 0:00:22.6]} 52. Rd7 {[%clk 0:00:46.2]} 52... Qf2+ {[%clk 0:00:23.2]}
53. Kb1 {[%clk 0:00:45.9]} 53... Ba5 {[%clk 0:00:23.4]} 54. Bc4+ {[%clk
0:00:31.7]} 54... Kb6 {[%clk 0:00:23.3]} 55. Rd6+ {[%clk 0:00:32.3]} 55... Kc7
{[%clk 0:00:22.6]} 56. Ra6 {[%clk 0:00:31]} 56... Bc3 {[%clk 0:00:22.2]} 57.
Ra7+ {[%clk 0:00:30.8]} 57... Kb6 {[%clk 0:00:21.1]} 58. Ra2 {[%clk 0:00:31.4]}
58... Qe1+ {[%clk 0:00:20.4]} 59. Kc2 {[%clk 0:00:32]} 59... Qd2+ {[%clk
0:00:20.7]} 60. Kb1 {[%clk 0:00:32.6]} 60... Qd1# {[%clk 0:00:21.3]} 0-1

[Event "Late-Titled-Tuesday-Blitz-January-16-2024"]
[Site "Chess.com"]
[Date "2024.01.16"]
[Round "2"]
[White "The_Straightforward_Rook"]
[Black "BozeKat"]
[Result "1-0"]
[WhiteElo "2464"]
[BlackElo "2104"]
[TimeControl "180+1"]
[EndTime "14:18:06 PST"]
[Termination "The_Straightforward_Rook won by resignation"]

1. e4 {[%clk 0:02:58]} 1... c6 {[%clk 0:03:00.3]} 2. Nc3 {[%clk 0:02:57]} 2...
d5 {[%clk 0:03:00.7]} 3. Nf3 {[%clk 0:02:57.7]} 3... a6 {[%clk 0:03:00.7]} 4. d4
{[%clk 0:02:47.3]} 4... Bg4 {[%clk 0:03:00]} 5. h3 {[%clk 0:02:45.7]} 5... Bh5
{[%clk 0:02:58.8]} 6. Be2 {[%clk 0:02:41.6]} 6... e6 {[%clk 0:02:58.3]} 7. O-O
{[%clk 0:02:41.1]} 7... Nf6 {[%clk 0:02:58.1]} 8. e5 {[%clk 0:02:40.4]} 8...
Nfd7 {[%clk 0:02:58.7]} 9. Bf4 {[%clk 0:02:32.4]} 9... c5 {[%clk 0:02:58.2]} 10.
Re1 {[%clk 0:02:31.2]} 10... Bxf3 {[%clk 0:02:56.2]} 11. Bxf3 {[%clk 0:02:30]}
11... cxd4 {[%clk 0:02:56.8]} 12. Qxd4 {[%clk 0:02:30.4]} 12... Nc6 {[%clk
0:02:57.3]} 13. Qd2 {[%clk 0:02:28.8]} 13... Be7 {[%clk 0:02:39.5]} 14. Rad1
{[%clk 0:02:03.5]} 14... Rc8 {[%clk 0:02:35.8]} 15. a3 {[%clk 0:02:02.2]} 15...
Na5 {[%clk 0:02:33.5]} 16. g3 {[%clk 0:01:57]} 16... Nc4 {[%clk 0:02:33.1]} 17.
Qc1 {[%clk 0:01:57.7]} 17... Qa5 {[%clk 0:02:27.1]} 18. Nb1 {[%clk 0:01:47.8]}
18... O-O {[%clk 0:02:14.4]} 19. c3 {[%clk 0:01:46.1]} 19... Qb6 {[%clk
0:02:03]} 20. Re2 {[%clk 0:01:38.6]} 20... Nc5 {[%clk 0:02:02.7]} 21. Be3 {[%clk
0:01:31.6]} 21... Qc7 {[%clk 0:02:02.7]} 22. Bd4 {[%clk 0:01:30.4]} 22... Nb3
{[%clk 0:02:00.4]} 23. Qf4 {[%clk 0:01:27.2]} 23... b5 {[%clk 0:01:41.1]} 24. h4
{[%clk 0:01:23.7]} 24... Bc5 {[%clk 0:01:34.1]} 25. h5 {[%clk 0:01:18.4]} 25...
h6 {[%clk 0:01:29.9]} 26. g4 {[%clk 0:01:13.9]} 26... Be7 {[%clk 0:01:28.3]} 27.
Qg3 {[%clk 0:01:06.9]} 27... a5 {[%clk 0:01:21.7]} 28. Bg2 {[%clk 0:00:51.2]}
28... b4 {[%clk 0:01:17.4]} 29. axb4 {[%clk 0:00:50.8]} 29... axb4 {[%clk
0:01:17.6]} 30. f4 {[%clk 0:00:50.1]} 30... Qd8 {[%clk 0:01:07.9]} 31. Kh1
{[%clk 0:00:46.1]} 31... bxc3 {[%clk 0:01:03.4]} 32. bxc3 {[%clk 0:00:44.8]}
32... Nc5 {[%clk 0:00:58.7]} 33. Bxc5 {[%clk 0:00:39]} 33... Rxc5 {[%clk
0:00:57.3]} 34. Nd2 {[%clk 0:00:38.5]} 34... Nxd2 {[%clk 0:00:55.7]} 35. Rexd2
{[%clk 0:00:37.6]} 35... Qc7 {[%clk 0:00:53.4]} 36. Rd3 {[%clk 0:00:35.3]} 36...
Rc8 {[%clk 0:00:52.8]} 37. Rc1 {[%clk 0:00:30.3]} 37... d4 {[%clk 0:00:51.4]}
38. Rxd4 {[%clk 0:00:26.5]} 38... Rxc3 {[%clk 0:00:49.1]} 39. Rxc3 {[%clk
0:00:27.2]} 39... Qxc3 {[%clk 0:00:50]} 40. Qxc3 {[%clk 0:00:27.6]} 40... Rxc3
{[%clk 0:00:49.6]} 41. Rd7 {[%clk 0:00:23.6]} 41... Kf8 {[%clk 0:00:48.7]} 42.
Ra7 {[%clk 0:00:20.5]} 42... g5 {[%clk 0:00:43.4]} 43. f5 {[%clk 0:00:18.2]}
43... exf5 {[%clk 0:00:41.4]} 44. gxf5 {[%clk 0:00:19.1]} 44... Re3 {[%clk
0:00:30.4]} 45. f6 {[%clk 0:00:18.4]} 45... Bd8 {[%clk 0:00:28.2]} 46. Ra8
{[%clk 0:00:18.6]} 46... Rd3 {[%clk 0:00:25.7]} 47. Kg1 {[%clk 0:00:18.1]} 47...
Rd1+ {[%clk 0:00:24.6]} 48. Kf2 {[%clk 0:00:18.4]} 48... Ke8 {[%clk 0:00:24.6]}
49. Ke2 {[%clk 0:00:18.2]} 49... Rd7 {[%clk 0:00:22]} 50. Bc6 {[%clk 0:00:18.6]}
50... g4 {[%clk 0:00:19.8]} 51. Ra7 {[%clk 0:00:18.6]} 1-0

[Event "Late-Titled-Tuesday-Blitz-January-16-2024"]
[Site "Chess.com"]
[Date "2024.01.16"]
[Round "2"]
[White "Jarming"]
[Black "Piotrek1979"]
[Result "0-1"]
[WhiteElo "2705"]
[BlackElo "2408"]
[TimeControl "180+1"]
[EndTime "14:18:07 PST"]
[Termination "Piotrek1979 won by checkmate"]

1. e4 {[%clk 0:03:00.9]} 1... c5 {[%clk 0:02:58.5]} 2. Nf3 {[%clk 0:03:00.7]}
2... Nc6 {[%clk 0:02:59]} 3. Nc3 {[%clk 0:02:58]} 3... g6 {[%clk 0:02:58.7]} 4.
d4 {[%clk 0:02:57.9]} 4... cxd4 {[%clk 0:02:59.6]} 5. Nxd4 {[%clk 0:02:58.8]}
5... Bg7 {[%clk 0:02:57.8]} 6. Be3 {[%clk 0:02:58.3]} 6... Nf6 {[%clk
0:02:58.2]} 7. Bc4 {[%clk 0:02:58.3]} 7... d6 {[%clk 0:02:52.4]} 8. f3 {[%clk
0:02:54.5]} 8... Bd7 {[%clk 0:02:50.1]} 9. Qd2 {[%clk 0:02:52.8]} 9... h5 {[%clk
0:02:44.9]} 10. O-O-O {[%clk 0:02:47.6]} 10... Ne5 {[%clk 0:02:44.1]} 11. Bb3
{[%clk 0:02:47.1]} 11... Rc8 {[%clk 0:02:43.9]} 12. Rhe1 {[%clk 0:02:44]} 12...
O-O {[%clk 0:02:37.4]} 13. Kb1 {[%clk 0:02:38.3]} 13... Re8 {[%clk 0:02:28]} 14.
Bh6 {[%clk 0:02:33.1]} 14... Nc4 {[%clk 0:02:10.7]} 15. Bxc4 {[%clk 0:02:30.9]}
15... Rxc4 {[%clk 0:02:11.6]} 16. Bxg7 {[%clk 0:02:30.9]} 16... Kxg7 {[%clk
0:02:12.5]} 17. Qg5 {[%clk 0:02:26.8]} 17... Rxc3 {[%clk 0:01:57.1]} 18. bxc3
{[%clk 0:02:25.7]} 18... Qb6+ {[%clk 0:01:50.9]} 19. Nb3 {[%clk 0:02:24.2]}
19... Rc8 {[%clk 0:01:48.4]} 20. e5 {[%clk 0:02:17.1]} 20... dxe5 {[%clk
0:01:41.3]} 21. Qxe5 {[%clk 0:02:18]} 21... Be6 {[%clk 0:01:35.6]} 22. h3 {[%clk
0:02:14.3]} 22... h4 {[%clk 0:01:18.8]} 23. Re4 {[%clk 0:01:59.4]} 23... Qf2
{[%clk 0:01:00.8]} 24. Re2 {[%clk 0:01:56.1]} 24... Qb6 {[%clk 0:00:58.1]} 25.
Qd4 {[%clk 0:01:48]} 25... Qa6 {[%clk 0:00:50.6]} 26. Re3 {[%clk 0:01:35.3]}
26... Rc4 {[%clk 0:00:50.7]} 27. Qd8 {[%clk 0:01:34.7]} 27... Ra4 {[%clk
0:00:45.5]} 28. Qxe7 {[%clk 0:01:34.5]} 28... Bxb3 {[%clk 0:00:41.1]} 29. cxb3
{[%clk 0:01:18.9]} 29... Rxa2 {[%clk 0:00:40.4]} 30. Rd8 {[%clk 0:01:16.4]}
30... Ra1+ {[%clk 0:00:30.8]} 31. Kc2 {[%clk 0:01:16.7]} 31... Qa2+ {[%clk
0:00:15.6]} 32. Kd3 {[%clk 0:01:12.8]} 32... Rd1+ {[%clk 0:00:16.5]} 33. Kc4
{[%clk 0:01:13.1]} 33... Qa6+ {[%clk 0:00:17]} 34. Kb4 {[%clk 0:01:13.5]} 34...
Qb6+ {[%clk 0:00:17.1]} 35. Kc4 {[%clk 0:01:13]} 35... Qxd8 {[%clk 0:00:16.6]}
36. Qxd8 {[%clk 0:01:11.1]} 36... Rxd8 {[%clk 0:00:17.5]} 37. Re7 {[%clk
0:01:10.9]} 37... Rc8+ {[%clk 0:00:17.2]} 38. Kd3 {[%clk 0:01:10.5]} 38... Rb8
{[%clk 0:00:11.9]} 39. c4 {[%clk 0:01:10]} 39... Kf8 {[%clk 0:00:12.5]} 40. Rc7
{[%clk 0:01:08.9]} 40... Ne8 {[%clk 0:00:13]} 41. Rd7 {[%clk 0:01:07.6]} 41...
Nf6 {[%clk 0:00:13.3]} 42. Rc7 {[%clk 0:01:07.8]} 42... Rd8+ {[%clk 0:00:14]}
43. Kc3 {[%clk 0:01:07.5]} 43... Rd7 {[%clk 0:00:14.9]} 44. Rc8+ {[%clk
0:01:07.5]} 44... Ke7 {[%clk 0:00:15.4]} 45. Rh8 {[%clk 0:01:07.6]} 45... g5
{[%clk 0:00:15.6]} 46. b4 {[%clk 0:01:08]} 46... Rc7 {[%clk 0:00:15.2]} 47. Kb3
{[%clk 0:01:06.9]} 47... b6 {[%clk 0:00:15.2]} 48. b5 {[%clk 0:01:07.1]} 48...
Ke6 {[%clk 0:00:15.3]} 49. Ra8 {[%clk 0:01:03.1]} 49... Kf5 {[%clk 0:00:15.7]}
50. Kb4 {[%clk 0:00:55.3]} 50... Nh5 {[%clk 0:00:15.6]} 51. Rd8 {[%clk
0:00:53.9]} 51... Nf4 {[%clk 0:00:14.6]} 52. Rd2 {[%clk 0:00:54.8]} 52... Re7
{[%clk 0:00:12.1]} 53. Ra2 {[%clk 0:00:55]} 53... f6 {[%clk 0:00:11.3]} 54. Kb3
{[%clk 0:00:54.1]} 54... Nd3 {[%clk 0:00:11.2]} 55. Kc3 {[%clk 0:00:50.9]} 55...
Nc5 {[%clk 0:00:12.1]} 56. Kb4 {[%clk 0:00:50.6]} 56... Kf4 {[%clk 0:00:12.6]}
57. Rd2 {[%clk 0:00:48.6]} 57... Kg3 {[%clk 0:00:11.9]} 58. Rd6 {[%clk
0:00:49.2]} 58... Re6 {[%clk 0:00:11.5]} 59. Rd2 {[%clk 0:00:47.9]} 59... Re3
{[%clk 0:00:11.4]} 60. Ra2 {[%clk 0:00:44.2]} 60... Rb3# {[%clk 0:00:10.3]} 0-1

[Event "Late-Titled-Tuesday-Blitz-January-16-2024"]
[Site "Chess.com"]
[Date "2024.01.16"]
[Round "2"]
[White "VitorBronson"]
[Black "Durarbayli"]
[Result "0-1"]
[WhiteElo "2554"]
[BlackElo "2863"]
[TimeControl "180+1"]
[EndTime "14:18:10 PST"]
[Termination "Durarbayli won by resignation"]

1. d4 {[%clk 0:02:48.6]} 1... Nf6 {[%clk 0:02:54.2]} 2. c4 {[%clk 0:02:48.5]}
2... e6 {[%clk 0:02:54.4]} 3. Nf3 {[%clk 0:02:48.2]} 3... b6 {[%clk 0:02:54.2]}
4. g3 {[%clk 0:02:48.1]} 4... Ba6 {[%clk 0:02:53.4]} 5. b3 {[%clk 0:02:48.1]}
5... Bb4+ {[%clk 0:02:51.5]} 6. Bd2 {[%clk 0:02:47.8]} 6... Be7 {[%clk 0:02:52]}
7. Nc3 {[%clk 0:02:45.4]} 7... d5 {[%clk 0:02:49.7]} 8. cxd5 {[%clk 0:02:43]}
8... exd5 {[%clk 0:02:49.6]} 9. Bg2 {[%clk 0:02:42.7]} 9... O-O {[%clk
0:02:49.1]} 10. O-O {[%clk 0:02:43]} 10... Re8 {[%clk 0:02:38.7]} 11. Re1 {[%clk
0:02:43.2]} 11... c5 {[%clk 0:02:32.6]} 12. Bf4 {[%clk 0:02:42.9]} 12... Nc6
{[%clk 0:02:26.3]} 13. a3 {[%clk 0:02:41.3]} 13... Ne4 {[%clk 0:02:03.6]} 14.
Nxe4 {[%clk 0:02:21.7]} 14... dxe4 {[%clk 0:02:01.2]} 15. Ne5 {[%clk 0:02:22.1]}
15... Nxd4 {[%clk 0:01:55.7]} 16. Bxe4 {[%clk 0:02:20.1]} 16... Nxe2+ {[%clk
0:01:27.5]} 17. Rxe2 {[%clk 0:02:14.6]} 17... Qxd1+ {[%clk 0:01:27.6]} 18. Rxd1
{[%clk 0:02:14.1]} 18... Bxe2 {[%clk 0:01:28.5]} 19. Rd2 {[%clk 0:02:12.1]}
19... Bb5 {[%clk 0:01:14.2]} 20. Bxa8 {[%clk 0:01:55.8]} 20... Rxa8 {[%clk
0:01:13.4]} 21. a4 {[%clk 0:01:56.3]} 21... Be8 {[%clk 0:01:12.5]} 22. Nc4
{[%clk 0:01:49.5]} 22... Kf8 {[%clk 0:00:50.3]} 23. h4 {[%clk 0:01:26.2]} 23...
f6 {[%clk 0:00:50.4]} 24. Ne3 {[%clk 0:01:07]} 24... Bf7 {[%clk 0:00:36.3]} 25.
Nc4 {[%clk 0:01:02.5]} 25... Rd8 {[%clk 0:00:25.3]} 26. Rc2 {[%clk 0:00:58.5]}
26... Rd3 {[%clk 0:00:20.6]} 27. Rb2 {[%clk 0:00:35.9]} 27... Bd5 {[%clk
0:00:20.5]} 28. g4 {[%clk 0:00:30.9]} 28... Rd4 {[%clk 0:00:18]} 29. Bb8 {[%clk
0:00:29]} 29... Rxg4+ {[%clk 0:00:17.9]} 30. Kf1 {[%clk 0:00:29.1]} 30... Bxc4+
{[%clk 0:00:14.9]} 31. bxc4 {[%clk 0:00:30]} 31... Rxc4 {[%clk 0:00:15.1]} 32.
Bxa7 {[%clk 0:00:29.5]} 32... Rxa4 {[%clk 0:00:15.7]} 33. Bxb6 {[%clk
0:00:30.1]} 33... Rxh4 {[%clk 0:00:16.2]} 34. Bc7 {[%clk 0:00:26.7]} 34... Kf7
{[%clk 0:00:15.2]} 35. Rb7 {[%clk 0:00:26.6]} 35... Rb4 {[%clk 0:00:15.4]} 36.
Ra7 {[%clk 0:00:25]} 36... Ke6 {[%clk 0:00:15.9]} 37. Bg3 {[%clk 0:00:24.1]}
37... g5 {[%clk 0:00:15.6]} 38. Kg2 {[%clk 0:00:24.3]} 38... h5 {[%clk
0:00:15.7]} 39. Ra6+ {[%clk 0:00:24.1]} 39... Kf7 {[%clk 0:00:16]} 40. Ra7
{[%clk 0:00:25]} 40... Rd4 {[%clk 0:00:16]} 41. f3 {[%clk 0:00:23]} 41... Ke6
{[%clk 0:00:14.2]} 42. Bf2 {[%clk 0:00:23.3]} 42... Rd2 {[%clk 0:00:13.8]} 43.
Kf1 {[%clk 0:00:23.7]} 43... h4 {[%clk 0:00:13.7]} 44. Ke1 {[%clk 0:00:23.8]}
44... Rd5 {[%clk 0:00:13.3]} 45. Ra6+ {[%clk 0:00:23.7]} 45... Bd6 {[%clk
0:00:13.7]} 46. Ra4 {[%clk 0:00:21.6]} 46... h3 {[%clk 0:00:13.5]} 47. Kf1
{[%clk 0:00:21.5]} 47... Rd1+ {[%clk 0:00:13]} 48. Ke2 {[%clk 0:00:21.7]} 48...
h2 {[%clk 0:00:12.1]} 49. Kxd1 {[%clk 0:00:19.5]} 49... h1=Q+ {[%clk 0:00:12.2]}
50. Ke2 {[%clk 0:00:20.4]} 50... Qh2 {[%clk 0:00:11.3]} 51. Re4+ {[%clk
0:00:21]} 51... Kf7 {[%clk 0:00:11.5]} 52. Re3 {[%clk 0:00:21.7]} 52... Bg3
{[%clk 0:00:11.4]} 0-1